[Event "*** Titled Tuesday Blitz"]
[Site "Chess.com"]
[Date "2019.11.05"]
[Round "1"]
[White "tango_argentino"]
[Black "DinaBelenkaya"]
[Result "1-0"]
[WhiteElo "2648"]
[BlackElo "2295"]
[TimeControl "180+2"]
[EndTime "13:07:08 PST"]
[Termination "tango_argentino won by resignation"]

1. d4 {[%clk 0:03:01.2]} 1... d5 {[%clk 0:03:00]} 2. c4 {[%clk 0:03:01.7]} 2...
dxc4 {[%clk 0:02:59.3]} 3. e4 {[%clk 0:03:02.4]} 3... Nf6 {[%clk 0:02:59.5]} 4.
e5 {[%clk 0:03:02.6]} 4... Nd5 {[%clk 0:03:00.4]} 5. Bxc4 {[%clk 0:03:03.8]}
5... Bf5 {[%clk 0:02:59]} 6. Qb3 {[%clk 0:02:57]} 6... c6 {[%clk 0:02:57.5]} 7.
Qxb7 {[%clk 0:02:54.5]} 7... Nb6 {[%clk 0:02:53.8]} 8. e6 {[%clk 0:02:25.6]}
8... fxe6 {[%clk 0:02:44.9]} 9. Bb3 {[%clk 0:02:19.6]} 9... Qxd4 {[%clk
0:02:01.9]} 10. Nf3 {[%clk 0:02:13.8]} 10... Qd7 {[%clk 0:01:51.5]} 11. Qxd7+
{[%clk 0:02:11.6]} 11... N8xd7 {[%clk 0:01:52.2]} 12. Nc3 {[%clk 0:02:12.2]}
12... e5 {[%clk 0:01:51.3]} 13. Be3 {[%clk 0:02:11.2]} 13... e6 {[%clk
0:01:46.8]} 14. O-O-O {[%clk 0:02:12.5]} 14... Bg4 {[%clk 0:01:41.8]} 15. Ng5
{[%clk 0:02:07.8]} 15... Bxd1 {[%clk 0:01:40.7]} 16. Rxd1 {[%clk 0:02:09.7]}
16... Nd5 {[%clk 0:01:40.3]} 17. Nxe6 {[%clk 0:02:08.1]} 17... Kf7 {[%clk
0:01:14.5]} 18. Ng5+ {[%clk 0:01:54.3]} 18... Ke8 {[%clk 0:01:15.1]} 19. Nxd5
{[%clk 0:01:47.8]} 19... cxd5 {[%clk 0:01:16.2]} 20. Rxd5 {[%clk 0:01:48.5]}
20... Rc8+ {[%clk 0:01:17.9]} 21. Kb1 {[%clk 0:01:49.1]} 21... h6 {[%clk
0:01:08.6]} 22. Ba4 {[%clk 0:01:47.4]} 22... Rc7 {[%clk 0:01:05.2]} 23. Ne6
{[%clk 0:01:47.7]} 23... Rb7 {[%clk 0:01:06.3]} 24. Bc5 {[%clk 0:01:39.1]} 24...
Be7 {[%clk 0:01:00.1]} 25. b4 {[%clk 0:01:03.4]} 25... g6 {[%clk 0:01:00.6]} 26.
a3 {[%clk 0:00:55]} 26... Rh7 {[%clk 0:01:01.2]} 27. Bxe7 {[%clk 0:00:51.4]}
27... Kxe7 {[%clk 0:01:01]} 28. Bxd7 {[%clk 0:00:48.6]} 28... Rxd7 {[%clk
0:01:01.7]} 29. Rxd7+ {[%clk 0:00:50.5]} 29... Kxd7 {[%clk 0:01:01]} 30. Nf8+
{[%clk 0:00:51.9]} 30... Ke7 {[%clk 0:01:02]} 31. Nxh7 {[%clk 0:00:53.5]} 31...
Kf7 {[%clk 0:01:03.4]} 32. h4 {[%clk 0:00:53.1]} 32... Kg7 {[%clk 0:01:04.5]}
33. Ng5 {[%clk 0:00:54.5]} 33... hxg5 {[%clk 0:01:05.3]} 34. hxg5 {[%clk
0:00:56.4]} 34... Kf7 {[%clk 0:01:06.4]} 35. Kc2 {[%clk 0:00:57.3]} 35... Ke6
{[%clk 0:01:07.8]} 36. Kd3 {[%clk 0:00:58]} 36... Kf5 {[%clk 0:01:09.2]} 37. b5
{[%clk 0:00:59.5]} 37... Kxg5 {[%clk 0:01:10.4]} 38. a4 {[%clk 0:01:00.9]} 38...
Kf5 {[%clk 0:01:11.1]} 39. a5 {[%clk 0:01:02.4]} 39... Ke6 {[%clk 0:01:12.4]}
40. b6 {[%clk 0:01:03.9]} 40... axb6 {[%clk 0:01:13.1]} 41. a6 {[%clk
0:01:03.3]} 41... Kd6 {[%clk 0:01:14.1]} 42. a7 {[%clk 0:01:03.8]} 42... Kc7
{[%clk 0:01:10.3]} 43. a8=Q {[%clk 0:01:04.5]} 43... Kd6 {[%clk 0:01:10.3]} 44.
Qg8 {[%clk 0:01:05.1]} 1-0

[Event "*** Titled Tuesday Blitz"]
[Site "Chess.com"]
[Date "2019.11.05"]
[Round "1"]
[White "Pilopa"]
[Black "chanchakman"]
[Result "1-0"]
[WhiteElo "2563"]
[BlackElo "2158"]
[TimeControl "180+2"]
[EndTime "13:07:11 PST"]
[Termination "Pilopa won by resignation"]

1. d4 {[%clk 0:02:55.8]} 1... Nf6 {[%clk 0:03:01.7]} 2. c4 {[%clk 0:02:56.4]}
2... g6 {[%clk 0:03:02.6]} 3. Nc3 {[%clk 0:02:55.9]} 3... Bg7 {[%clk 0:03:03.5]}
4. e4 {[%clk 0:02:56.6]} 4... d6 {[%clk 0:03:05.4]} 5. Nf3 {[%clk 0:02:57.1]}
5... O-O {[%clk 0:03:05.6]} 6. Be2 {[%clk 0:02:59]} 6... e5 {[%clk 0:03:06]} 7.
O-O {[%clk 0:02:59.2]} 7... Nc6 {[%clk 0:03:06.4]} 8. dxe5 {[%clk 0:03:00.1]}
8... dxe5 {[%clk 0:02:55.6]} 9. Bg5 {[%clk 0:03:00.6]} 9... Qxd1 {[%clk
0:02:54.9]} 10. Rfxd1 {[%clk 0:03:02]} 10... h6 {[%clk 0:02:53]} 11. Be3 {[%clk
0:02:52]} 11... b6 {[%clk 0:02:39.5]} 12. Rac1 {[%clk 0:02:22.2]} 12... Bb7
{[%clk 0:02:07.9]} 13. a3 {[%clk 0:02:13.4]} 13... Ng4 {[%clk 0:02:03.9]} 14.
Nd5 {[%clk 0:02:13.2]} 14... Nxe3 {[%clk 0:02:01]} 15. fxe3 {[%clk 0:02:13.3]}
15... Rac8 {[%clk 0:01:50.7]} 16. c5 {[%clk 0:02:13.4]} 16... Kh7 {[%clk
0:01:47.4]} 17. Bb5 {[%clk 0:02:05.6]} 17... Nb8 {[%clk 0:01:46.5]} 18. c6
{[%clk 0:01:54.4]} 18... Ba6 {[%clk 0:01:46.9]} 19. Bxa6 {[%clk 0:01:44.9]}
19... Nxa6 {[%clk 0:01:48.8]} 20. b4 {[%clk 0:01:45.6]} 20... f5 {[%clk
0:01:48.7]} 21. Nd2 {[%clk 0:01:44.7]} 21... Rcd8 {[%clk 0:01:29.7]} 22. Nb3
{[%clk 0:01:36.8]} 22... Rf7 {[%clk 0:01:20.5]} 23. b5 {[%clk 0:01:34.9]} 23...
Nc5 {[%clk 0:01:15.9]} 24. Nxc5 {[%clk 0:01:35.4]} 24... bxc5 {[%clk 0:01:17.3]}
25. a4 {[%clk 0:01:29.7]} 25... fxe4 {[%clk 0:01:17.1]} 26. Rxc5 {[%clk
0:01:19.5]} 26... h5 {[%clk 0:01:08.3]} 27. Rc4 {[%clk 0:01:19]} 27... Rd6
{[%clk 0:01:04.1]} 28. Rxe4 {[%clk 0:01:11.2]} 28... a6 {[%clk 0:01:05.1]} 29.
Rc4 {[%clk 0:01:09.2]} 29... axb5 {[%clk 0:01:05.6]} 30. axb5 {[%clk 0:01:11.1]}
30... Rf8 {[%clk 0:01:06.5]} 31. e4 {[%clk 0:01:05.2]} 31... Rb8 {[%clk
0:01:06.5]} 32. Rb1 {[%clk 0:01:05.4]} 32... Rc8 {[%clk 0:01:03]} 33. b6 {[%clk
0:01:02.9]} 33... cxb6 {[%clk 0:01:03.8]} 34. Rxb6 {[%clk 0:01:04.3]} 34... Bh6
{[%clk 0:00:59]} 35. Rb7+ {[%clk 0:01:00.4]} 35... Kh8 {[%clk 0:00:59.9]} 36. c7
{[%clk 0:01:00.7]} 36... Bg5 {[%clk 0:00:58.3]} 37. Rb8 {[%clk 0:00:58.3]} 1-0

[Event "*** Titled Tuesday Blitz"]
[Site "Chess.com"]
[Date "2019.11.05"]
[Round "1"]
[White "amiralfio"]
[Black "jlucasvf"]
[Result "0-1"]
[WhiteElo "2426"]
[BlackElo "2795"]
[TimeControl "180+2"]
[EndTime "13:07:12 PST"]
[Termination "jlucasvf won by checkmate"]

1. Nf3 {[%clk 0:02:57.5]} 1... d5 {[%clk 0:02:58.8]} 2. c4 {[%clk 0:02:58.2]}
2... b5 {[%clk 0:02:59.4]} 3. cxb5 {[%clk 0:02:57.4]} 3... a6 {[%clk 0:02:59.8]}
4. e3 {[%clk 0:02:58.7]} 4... axb5 {[%clk 0:03:00.6]} 5. Bxb5+ {[%clk
0:03:00.6]} 5... c6 {[%clk 0:03:01.8]} 6. Be2 {[%clk 0:03:02.2]} 6... Nd7 {[%clk
0:02:51.9]} 7. b3 {[%clk 0:02:59]} 7... e5 {[%clk 0:02:49.8]} 8. Bb2 {[%clk
0:03:00.1]} 8... Bd6 {[%clk 0:02:50.2]} 9. Qc2 {[%clk 0:02:56.8]} 9... Bb7
{[%clk 0:02:45.3]} 10. Nc3 {[%clk 0:02:33.5]} 10... Ngf6 {[%clk 0:02:37.3]} 11.
g4 {[%clk 0:02:32]} 11... h6 {[%clk 0:01:46.4]} 12. Rg1 {[%clk 0:02:26]} 12...
e4 {[%clk 0:01:45.6]} 13. Nd4 {[%clk 0:02:23.7]} 13... Bxh2 {[%clk 0:01:40.6]}
14. Rg2 {[%clk 0:02:25]} 14... Be5 {[%clk 0:01:41.4]} 15. O-O-O {[%clk 0:02:11]}
15... c5 {[%clk 0:01:38.7]} 16. Nf5 {[%clk 0:02:10.5]} 16... d4 {[%clk
0:01:30.7]} 17. Nb5 {[%clk 0:01:56.4]} 17... d3 {[%clk 0:01:28.8]} 18. Qc4
{[%clk 0:01:57.4]} 18... Bd5 {[%clk 0:01:21.8]} 19. Bxd3 {[%clk 0:01:51.8]}
19... Bxb2+ {[%clk 0:01:10.4]} 20. Kxb2 {[%clk 0:01:51.5]} 20... Bxc4 {[%clk
0:01:12.3]} 21. Bxc4 {[%clk 0:01:52]} 21... Ne5 {[%clk 0:01:01.8]} 22. Nfd6+
{[%clk 0:01:52.2]} 22... Ke7 {[%clk 0:01:01]} 23. g5 {[%clk 0:01:51.8]} 23...
hxg5 {[%clk 0:00:58.4]} 24. Rxg5 {[%clk 0:01:53.7]} 24... Nxc4+ {[%clk 0:00:58]}
25. Nxc4 {[%clk 0:01:50.5]} 25... g6 {[%clk 0:00:52.4]} 26. Rxc5 {[%clk
0:01:45.1]} 26... Rc8 {[%clk 0:00:49.8]} 27. Re5+ {[%clk 0:01:44]} 27... Kf8
{[%clk 0:00:50.8]} 28. Nbd6 {[%clk 0:01:45.2]} 28... Rc6 {[%clk 0:00:49.9]} 29.
Nxe4 {[%clk 0:01:46.4]} 29... Nxe4 {[%clk 0:00:49.9]} 30. Rxe4 {[%clk
0:01:48.3]} 30... Qf6+ {[%clk 0:00:51.8]} 31. Rd4 {[%clk 0:01:47.6]} 31... Rh4
{[%clk 0:00:51.6]} 32. Kc3 {[%clk 0:01:46.5]} 32... Rxd4 {[%clk 0:00:51.7]} 33.
exd4 {[%clk 0:01:48.4]} 33... Qxf2 {[%clk 0:00:53.4]} 34. Rc1 {[%clk 0:01:45.6]}
34... g5 {[%clk 0:00:53.4]} 35. d5 {[%clk 0:01:46]} 35... Rf6 {[%clk 0:00:53.8]}
36. d6 {[%clk 0:01:46]} 36... Rxd6 {[%clk 0:00:52.5]} 37. Nxd6 {[%clk
0:01:47.9]} 37... Qf6+ {[%clk 0:00:53.7]} 38. d4 {[%clk 0:01:48.3]} 38... Qxd6
{[%clk 0:00:55.6]} 39. Kd3 {[%clk 0:01:45.3]} 39... g4 {[%clk 0:00:55.3]} 40.
Rg1 {[%clk 0:01:40.8]} 40... Qf4 {[%clk 0:00:54.9]} 41. Ke2 {[%clk 0:01:40]}
41... Qe4+ {[%clk 0:00:54.5]} 42. Kf2 {[%clk 0:01:40.5]} 42... Qxd4+ {[%clk
0:00:56.4]} 43. Kg2 {[%clk 0:01:42.1]} 43... f5 {[%clk 0:00:57.3]} 44. Rf1
{[%clk 0:01:43.5]} 44... Qe4+ {[%clk 0:00:57.1]} 45. Kg3 {[%clk 0:01:43.3]}
45... Kg7 {[%clk 0:00:59]} 46. a4 {[%clk 0:01:41.2]} 46... Qe5+ {[%clk
0:00:58.7]} 47. Kh4 {[%clk 0:01:41.7]} 47... Kg6 {[%clk 0:00:57.9]} 48. Rf2
{[%clk 0:01:39]} 48... Qe3 {[%clk 0:00:56.9]} 49. Rh2 {[%clk 0:01:39.1]} 49...
Qe1+ {[%clk 0:00:56.3]} 50. Rf2 {[%clk 0:01:40.5]} 50... Qxf2# {[%clk
0:00:54.5]} 0-1

[Event "*** Titled Tuesday Blitz"]
[Site "Chess.com"]
[Date "2019.11.05"]
[Round "1"]
[White "GadimbayliA"]
[Black "WPWPWP-2015"]
[Result "1-0"]
[WhiteElo "2920"]
[BlackElo "2492"]
[TimeControl "180+2"]
[EndTime "13:07:14 PST"]
[Termination "GadimbayliA won on time"]

1. e4 {[%clk 0:03:00.3]} 1... e5 {[%clk 0:02:59.3]} 2. Nf3 {[%clk 0:02:59.6]}
2... Nc6 {[%clk 0:02:59.8]} 3. Bb5 {[%clk 0:02:59.9]} 3... Nf6 {[%clk
0:03:00.4]} 4. O-O {[%clk 0:02:59.7]} 4... Nxe4 {[%clk 0:03:01.4]} 5. d4 {[%clk
0:02:59.9]} 5... Nd6 {[%clk 0:03:01.9]} 6. dxe5 {[%clk 0:03:01.3]} 6... Nxb5
{[%clk 0:03:02.4]} 7. a4 {[%clk 0:03:03]} 7... Nbd4 {[%clk 0:03:01]} 8. Nxd4
{[%clk 0:03:04.2]} 8... Nxd4 {[%clk 0:03:01.7]} 9. Qxd4 {[%clk 0:03:06.1]} 9...
d5 {[%clk 0:03:02.3]} 10. Qd3 {[%clk 0:03:06.8]} 10... Be7 {[%clk 0:02:59.6]}
11. Qg3 {[%clk 0:03:07.5]} 11... g6 {[%clk 0:02:45.3]} 12. Bh6 {[%clk
0:03:07.7]} 12... Be6 {[%clk 0:02:43.4]} 13. Nc3 {[%clk 0:03:06.4]} 13... Qd7
{[%clk 0:02:37.4]} 14. Rfd1 {[%clk 0:03:03.9]} 14... a6 {[%clk 0:02:33.6]} 15.
Nxd5 {[%clk 0:02:56.5]} 15... Bxd5 {[%clk 0:02:33.2]} 16. c4 {[%clk 0:02:57.7]}
16... c6 {[%clk 0:02:29.1]} 17. cxd5 {[%clk 0:02:58.8]} 17... cxd5 {[%clk
0:02:29.8]} 18. Rac1 {[%clk 0:02:51.4]} 18... Rd8 {[%clk 0:02:25.8]} 19. b3
{[%clk 0:02:32.9]} 19... Qe6 {[%clk 0:01:58.5]} 20. Rc7 {[%clk 0:02:22.7]} 20...
b5 {[%clk 0:01:56.2]} 21. axb5 {[%clk 0:02:20.4]} 21... axb5 {[%clk 0:01:56.8]}
22. Qd3 {[%clk 0:02:02.1]} 22... Qb6 {[%clk 0:01:44.8]} 23. Rdc1 {[%clk
0:02:02.7]} 23... d4 {[%clk 0:01:02.5]} 24. h3 {[%clk 0:01:56.4]} 24... Rd7
{[%clk 0:00:50.7]} 25. Rc8+ {[%clk 0:01:52.1]} 25... Rd8 {[%clk 0:00:47.8]} 26.
Rxd8+ {[%clk 0:01:39.9]} 26... Bxd8 {[%clk 0:00:35.7]} 27. Qe4 {[%clk
0:01:40.6]} 27... Qe6 {[%clk 0:00:25]} 28. Rc6 {[%clk 0:01:13.3]} 28... Qf5
{[%clk 0:00:25]} 29. Qxd4 {[%clk 0:01:10.2]} 29... Be7 {[%clk 0:00:06]} 30. e6
{[%clk 0:01:07.1]} 30... Qb1+ {[%clk 0:00:03]} 31. Kh2 {[%clk 0:01:06.6]} 1-0

[Event "*** Titled Tuesday Blitz"]
[Site "Chess.com"]
[Date "2019.11.05"]
[Round "1"]
[White "Nazar-Nazar"]
[Black "joppie2"]
[Result "0-1"]
[WhiteElo "2490"]
[BlackElo "2889"]
[TimeControl "180+2"]
[EndTime "13:07:15 PST"]
[Termination "joppie2 won by resignation"]

1. d4 {[%clk 0:03:01.9]} 1... Nf6 {[%clk 0:02:32.2]} 2. Nf3 {[%clk 0:03:02.2]}
2... e6 {[%clk 0:02:21.8]} 3. c4 {[%clk 0:03:02.4]} 3... d5 {[%clk 0:02:06.9]}
4. g3 {[%clk 0:03:01.9]} 4... Bb4+ {[%clk 0:02:06.9]} 5. Bd2 {[%clk 0:03:02.3]}
5... Be7 {[%clk 0:02:07.4]} 6. Bg2 {[%clk 0:03:02]} 6... O-O {[%clk 0:02:09]} 7.
O-O {[%clk 0:03:03.1]} 7... c6 {[%clk 0:02:09.5]} 8. Qc2 {[%clk 0:02:56.6]} 8...
Nbd7 {[%clk 0:02:09.9]} 9. Bf4 {[%clk 0:02:51.8]} 9... b6 {[%clk 0:02:10.2]} 10.
cxd5 {[%clk 0:02:52.9]} 10... cxd5 {[%clk 0:02:10.7]} 11. Rc1 {[%clk 0:02:37.5]}
11... Bb7 {[%clk 0:02:11.8]} 12. Nc3 {[%clk 0:02:00.3]} 12... a6 {[%clk
0:02:08.2]} 13. Qb3 {[%clk 0:01:37.8]} 13... Rc8 {[%clk 0:02:02.2]} 14. Ne5
{[%clk 0:01:24.3]} 14... Nxe5 {[%clk 0:02:01.8]} 15. Bxe5 {[%clk 0:01:24.8]}
15... Nd7 {[%clk 0:02:03.3]} 16. Bf4 {[%clk 0:01:24.8]} 16... b5 {[%clk
0:01:57.2]} 17. e4 {[%clk 0:01:17.6]} 17... dxe4 {[%clk 0:01:57.5]} 18. Nxe4
{[%clk 0:01:17.9]} 18... Bd5 {[%clk 0:01:54.5]} 19. Qd1 {[%clk 0:01:03.7]} 19...
Rxc1 {[%clk 0:01:48.6]} 20. Rxc1 {[%clk 0:01:01.9]} 20... Nf6 {[%clk 0:01:50.5]}
21. Nc5 {[%clk 0:00:49.7]} 21... Bxg2 {[%clk 0:01:50.4]} 22. Kxg2 {[%clk
0:00:50.8]} 22... Nd5 {[%clk 0:01:51.1]} 23. Bd2 {[%clk 0:00:48.1]} 23... Bf6
{[%clk 0:01:47.4]} 24. Be1 {[%clk 0:00:37.6]} 24... Qa8 {[%clk 0:01:46.4]} 25.
Kg1 {[%clk 0:00:38.5]} 25... Rd8 {[%clk 0:01:47.8]} 26. a4 {[%clk 0:00:35.8]}
26... h6 {[%clk 0:01:44.9]} 27. axb5 {[%clk 0:00:35.9]} 27... axb5 {[%clk
0:01:46.8]} 28. Ra1 {[%clk 0:00:35.5]} 28... Qc8 {[%clk 0:01:46.1]} 29. Qd3
{[%clk 0:00:26.9]} 29... Nc7 {[%clk 0:01:39.6]} 30. Nb3 {[%clk 0:00:22.3]} 30...
Qb7 {[%clk 0:01:40]} 31. Ba5 {[%clk 0:00:20.9]} 31... Rd7 {[%clk 0:01:40]} 32.
Bxc7 {[%clk 0:00:21.1]} 32... Rxc7 {[%clk 0:01:41.2]} 33. Ra5 {[%clk 0:00:17.3]}
33... Rc4 {[%clk 0:01:39.5]} 34. Ra1 {[%clk 0:00:14.4]} 34... g6 {[%clk
0:01:39.5]} 35. Na5 {[%clk 0:00:15]} 35... Qa6 {[%clk 0:01:38.6]} 36. Nb3 {[%clk
0:00:15.2]} 36... Qd6 {[%clk 0:01:38.8]} 37. Rd1 {[%clk 0:00:16.3]} 37... Qd5
{[%clk 0:01:39]} 38. h4 {[%clk 0:00:17.5]} 38... h5 {[%clk 0:01:39.7]} 39. Rd2
{[%clk 0:00:16.6]} 39... Rb4 {[%clk 0:01:41]} 40. Nc5 {[%clk 0:00:03.6]} 40...
Rxd4 {[%clk 0:01:41.5]} 0-1

[Event "*** Titled Tuesday Blitz"]
[Site "Chess.com"]
[Date "2019.11.05"]
[Round "1"]
[White "joshdaruca"]
[Black "Feegus"]
[Result "1-0"]
[WhiteElo "2700"]
[BlackElo "2346"]
[TimeControl "180+2"]
[EndTime "13:07:29 PST"]
[Termination "joshdaruca won by resignation"]

1. Nf3 {[%clk 0:03:01.9]} 1... Nf6 {[%clk 0:02:51.4]} 2. g3 {[%clk 0:02:48.3]}
2... g6 {[%clk 0:02:52]} 3. Bg2 {[%clk 0:02:48.7]} 3... Bg7 {[%clk 0:02:50.6]}
4. O-O {[%clk 0:02:50.6]} 4... O-O {[%clk 0:02:50.7]} 5. c4 {[%clk 0:02:50.9]}
5... d5 {[%clk 0:02:51.3]} 6. cxd5 {[%clk 0:02:51.6]} 6... Nxd5 {[%clk
0:02:51.5]} 7. Nc3 {[%clk 0:02:53.5]} 7... Nc6 {[%clk 0:02:52]} 8. Nxd5 {[%clk
0:02:48.3]} 8... Qxd5 {[%clk 0:02:49.1]} 9. d3 {[%clk 0:02:49.7]} 9... Bg4
{[%clk 0:02:48.1]} 10. h3 {[%clk 0:02:49.8]} 10... Bxf3 {[%clk 0:02:37.4]} 11.
Bxf3 {[%clk 0:02:49.6]} 11... Qd7 {[%clk 0:02:39.3]} 12. Bg2 {[%clk 0:02:44.2]}
12... Rab8 {[%clk 0:02:40.1]} 13. Rb1 {[%clk 0:02:45.2]} 13... Nd4 {[%clk
0:02:39.4]} 14. b4 {[%clk 0:02:45.4]} 14... Nb5 {[%clk 0:02:37]} 15. Qb3 {[%clk
0:02:17.5]} 15... Nd4 {[%clk 0:02:23.4]} 16. Qd1 {[%clk 0:01:58.1]} 16... Nb5
{[%clk 0:02:24.4]} 17. Qc2 {[%clk 0:01:49.8]} 17... Nd4 {[%clk 0:02:11.1]} 18.
Qd2 {[%clk 0:01:50.2]} 18... Qe6 {[%clk 0:02:08.4]} 19. e3 {[%clk 0:01:45]}
19... Nb5 {[%clk 0:02:06.2]} 20. d4 {[%clk 0:01:46]} 20... c6 {[%clk 0:02:03.4]}
21. a4 {[%clk 0:01:46.4]} 21... Nd6 {[%clk 0:02:03.8]} 22. b5 {[%clk 0:01:47.8]}
22... Qc4 {[%clk 0:02:00.6]} 23. Rb4 {[%clk 0:01:37.6]} 23... Qe6 {[%clk
0:02:01.8]} 24. bxc6 {[%clk 0:01:25.8]} 24... bxc6 {[%clk 0:02:03.7]} 25. Rxb8
{[%clk 0:01:16.1]} 25... Rxb8 {[%clk 0:02:04]} 26. Qa5 {[%clk 0:01:18]} 26...
Qd7 {[%clk 0:01:55.5]} 27. Qc5 {[%clk 0:01:16]} 27... Rb6 {[%clk 0:01:48.5]} 28.
Bd2 {[%clk 0:01:11.7]} 28... Nb7 {[%clk 0:01:47.6]} 29. Qc2 {[%clk 0:01:11.2]}
29... e5 {[%clk 0:01:20.9]} 30. a5 {[%clk 0:01:12.4]} 30... Ra6 {[%clk
0:01:16.8]} 31. Qc4 {[%clk 0:01:06]} 31... Rxa5 {[%clk 0:01:09.1]} 32. Bxa5
{[%clk 0:01:06.7]} 32... Nxa5 {[%clk 0:01:11]} 33. Qa4 {[%clk 0:01:08.3]} 33...
Qd8 {[%clk 0:01:10.2]} 34. Ra1 {[%clk 0:01:08.3]} 34... Nb7 {[%clk 0:01:05.9]}
35. Qxc6 {[%clk 0:01:08]} 35... exd4 {[%clk 0:01:02.2]} 36. Qxb7 {[%clk
0:01:02.1]} 36... dxe3 {[%clk 0:00:55.7]} 37. Rxa7 {[%clk 0:00:53.4]} 37...
exf2+ {[%clk 0:00:56.5]} 38. Kh2 {[%clk 0:00:54.4]} 38... Qd6 {[%clk 0:00:50.8]}
39. Qxf7+ {[%clk 0:00:54.7]} 1-0

[Event "*** Titled Tuesday Blitz"]
[Site "Chess.com"]
[Date "2019.11.05"]
[Round "1"]
[White "littleplotkin"]
[Black "StoreySniper"]
[Result "1-0"]
[WhiteElo "2670"]
[BlackElo "2309"]
[TimeControl "180+2"]
[EndTime "13:07:29 PST"]
[Termination "littleplotkin won by resignation"]

1. e4 {[%clk 0:02:57.1]} 1... g6 {[%clk 0:03:00.5]} 2. d4 {[%clk 0:02:57.2]}
2... Bg7 {[%clk 0:03:02.2]} 3. Nc3 {[%clk 0:02:58.6]} 3... c5 {[%clk 0:03:03.6]}
4. dxc5 {[%clk 0:02:58.3]} 4... Bxc3+ {[%clk 0:03:03.8]} 5. bxc3 {[%clk
0:02:59.1]} 5... Nf6 {[%clk 0:03:05.6]} 6. e5 {[%clk 0:02:59.4]} 6... Ne4 {[%clk
0:03:06.3]} 7. Qd4 {[%clk 0:03:00.4]} 7... Qa5 {[%clk 0:03:07.1]} 8. Bd3 {[%clk
0:02:54.2]} 8... Nxc5 {[%clk 0:03:07.4]} 9. Bd2 {[%clk 0:02:51.5]} 9... Nc6
{[%clk 0:03:08.2]} 10. Qh4 {[%clk 0:02:46]} 10... Nxe5 {[%clk 0:03:06.9]} 11.
Be2 {[%clk 0:02:44.1]} 11... Qa4 {[%clk 0:03:03.9]} 12. Qd4 {[%clk 0:02:41.2]}
12... d6 {[%clk 0:03:04.4]} 13. f4 {[%clk 0:02:38.5]} 13... f6 {[%clk
0:02:46.7]} 14. fxe5 {[%clk 0:02:38.3]} 14... fxe5 {[%clk 0:02:47.9]} 15. Qxa4+
{[%clk 0:02:38.9]} 15... Nxa4 {[%clk 0:02:49.1]} 16. Nf3 {[%clk 0:02:38.9]}
16... Bd7 {[%clk 0:02:49.8]} 17. Ng5 {[%clk 0:02:30]} 17... Rc8 {[%clk
0:02:45.2]} 18. O-O {[%clk 0:02:27.7]} 18... Nxc3 {[%clk 0:02:44.6]} 19. Bd3
{[%clk 0:02:27.5]} 19... Bf5 {[%clk 0:02:41.6]} 20. Bxf5 {[%clk 0:02:13.1]}
20... gxf5 {[%clk 0:02:42.7]} 21. Rxf5 {[%clk 0:02:15]} 21... Ne2+ {[%clk
0:02:43.3]} 22. Kh1 {[%clk 0:02:12.8]} 22... Rxc2 {[%clk 0:02:40]} 23. Be3
{[%clk 0:02:10.1]} 23... b6 {[%clk 0:02:25.3]} 24. Rf2 {[%clk 0:02:05.2]} 24...
h6 {[%clk 0:01:52]} 25. Nf3 {[%clk 0:02:04.6]} 25... O-O {[%clk 0:01:42.5]} 26.
Re1 {[%clk 0:02:00.1]} 26... e4 {[%clk 0:01:42.3]} 27. Rfxe2 {[%clk 0:02:00.5]}
27... Rxe2 {[%clk 0:01:42.6]} 28. Rxe2 {[%clk 0:02:02.4]} 28... exf3 {[%clk
0:01:44]} 29. gxf3 {[%clk 0:02:04.3]} 29... Rxf3 {[%clk 0:01:44.6]} 30. Bxh6
{[%clk 0:02:04.8]} 30... Kf7 {[%clk 0:01:36.1]} 31. Kg2 {[%clk 0:02:01.2]} 31...
Ra3 {[%clk 0:01:36.7]} 32. Bc1 {[%clk 0:01:57.4]} 32... Ra4 {[%clk 0:01:30.6]}
33. Kg3 {[%clk 0:01:55.5]} 33... e5 {[%clk 0:01:29.6]} 34. h4 {[%clk 0:01:54.9]}
34... Kg6 {[%clk 0:01:18.4]} 35. Rd2 {[%clk 0:01:52]} 35... Kf5 {[%clk
0:01:14.3]} 36. h5 {[%clk 0:01:47.8]} 36... Rc4 {[%clk 0:01:08.7]} 37. Rf2+
{[%clk 0:01:47.1]} 37... Ke6 {[%clk 0:01:06.5]} 38. Bg5 {[%clk 0:01:47.9]} 38...
Rc3+ {[%clk 0:01:01]} 39. Kh2 {[%clk 0:01:42]} 39... Rc7 {[%clk 0:00:52.8]} 40.
h6 {[%clk 0:01:40.9]} 40... e4 {[%clk 0:00:50.4]} 41. Kg3 {[%clk 0:01:41.5]}
41... d5 {[%clk 0:00:48.6]} 42. Rf6+ {[%clk 0:01:39.2]} 42... Ke5 {[%clk
0:00:47.5]} 43. Rg6 {[%clk 0:01:40.3]} 43... Rc3+ {[%clk 0:00:47.3]} 44. Kg4
{[%clk 0:01:40.7]} 44... Rc8 {[%clk 0:00:37.5]} 45. h7 {[%clk 0:01:40.2]} 45...
e3 {[%clk 0:00:30.7]} 46. Rg8 {[%clk 0:01:38.7]} 46... Rc4+ {[%clk 0:00:23.8]}
47. Kf3 {[%clk 0:01:35.1]} 1-0